bitfinex/quotes_SOLUSD_20250415
["timestamp","ask_amount","ask_price","bid_price","bid_amount"]
[1744701414937,18.80132562,131.68,131.67,0.063]
[1744701418650,17.53942562,131.7,131.67,0.063]
[1744701418951,9.94632562,131.68,131.67,0.063]
[1744701419157,9.94632562,131.69,131.67,0.063]
[1744701420261,17.53992562,131.69,131.67,0.063]
[1744701420658,9.94632562,131.69,131.67,0.063]
[1744701421462,17.53992562,131.69,131.67,0.063]
[1744701422365,9.94632562,131.68,131.67,0.063]
[1744701423459,17.53992562,131.69,131.67,0.063]
[1744701424556,9.94632562,131.68,131.67,0.063]
[1744701426486,17.54042562,131.68,131.67,0.063]
[1744701426669,36.61655919,131.68,131.67,0.063]
[1744701427549,64.48328481,131.68,131.67,0.0001]
[1744701427864,19.21829514,131.67,131.64,0.063]
[1744701428062,28.88029762,131.65,131.64,0.063]
[1744701428566,36.47609762,131.65,131.64,0.063]
[1744701431767,0.14216157,131.63,131.62,0.063]
[1744701431975,39.24245919,131.63,131.62,0.063]
[1744701432173,0.14216157,131.61,131.6,0.063]
[1744701432366,10.08848719,131.61,131.6,0.063]
[1744701432668,9.94632562,131.61,131.6,0.063]
[1744701433674,17.54452562,131.61,131.6,0.063]
[1744701433871,7.5982,131.61,131.6,0.063]
[1744701434076,17.54452562,131.61,131.6,0.063]
[1744701434573,17.54392562,131.63,131.6,0.063]
[1744701434780,7.5976,131.63,131.6,0.063]
[1744701435276,17.54392562,131.63,131.6,0.063]
[1744701436274,17.54292562,131.64,131.6,0.063]
[1744701437773,9.94632562,131.62,131.6,0.063]
[1744701439168,9.94632562,131.63,131.6,0.063]
[1744701439479,17.54292562,131.64,131.6,10.00932562]
[1744701439673,9.94632562,131.63,131.6,0.063]
[1744701440377,17.54292562,131.64,131.6,7.6617]
[1744701440579,38.81597448,131.67,131.6,7.6617]
[1744701440580,9.94632562,131.67,131.62,9.94632562]
[1744701440774,9.94632562,131.68,131.64,9.94632562]
[1744701440971,9.97632562,131.7,131.65,9.94632562]
[1744701441369,0.03,131.7,131.66,9.94632562]
[1744701441572,0.03,131.7,131.66,17.54152562]
[1744701442080,0.03,131.7,131.67,9.94632562]
[1744701442282,0.03,131.7,131.68,9.94632562]
[1744701442486,0.03,131.7,131.69,9.94632562]
[1744701443074,0.03,131.7,131.68,9.94632562]
[1744701443279,0.03,131.7,131.67,9.94632562]
[1744701443482,0.03,131.7,131.67,17.54082562]
[1744701443685,0.03,131.7,131.68,9.94632562]
[1744701444186,0.03,131.7,131.69,9.94632562]
[1744701444770,0.03,131.7,131.69,10.08848719]
[1744701445189,0.03,131.7,131.69,11.58878719]
[1744701445485,0.03,131.7,131.69,17.88198719]
[1744701445666,0.03,131.7,131.69,25.47548719]
[1744701447692,0.03,131.74,131.72,26.0]
[1744701447994,0.03,131.74,131.73,9.94632562]
[1744701448189,0.03,131.74,131.72,35.94632562]
[1744701448890,0.03,131.74,131.73,10.08848719]
[1744701449571,0.03,131.74,131.73,17.67968719]
[1744701450292,0.03,131.74,131.72,35.94632562]
[1744701450593,0.03,131.74,131.72,26.0]
[1744701453690,9.94632562,131.73,131.69,84.5002]
[1744701453891,9.94632562,131.73,131.69,1.5003]
[1744701454188,9.97632562,131.74,131.7,9.94632562]
[1744701455690,17.56732562,131.74,131.69,11.44662562]
[1744701455887,9.94632562,131.73,131.68,20.16632562]
[1744701456094,9.94632562,131.72,131.68,10.22]
[1744701456284,0.03,131.74,131.71,9.94632562]
[1744701456687,0.03,131.74,131.7,9.94632562]
[1744701457091,9.94632562,131.73,131.68,20.16632562]
[1744701457498,9.94632562,131.73,131.68,27.76032562]
[1744701457695,17.56712562,131.74,131.69,9.94632562]
[1744701457879,17.56702562,131.74,131.7,9.94632562]
[1744701458396,9.97632562,131.74,131.69,9.94632562]
[1744701458586,9.97632562,131.74,131.71,9.94632562]
[1744701458587,0.03,131.74,131.71,9.94632562]
[1744701458787,0.03,131.74,131.69,0.14216157]
[1744701459002,0.03,131.74,131.71,9.94632562]
[1744701459694,0.03,131.74,131.7,9.94632562]
[1744701461895,0.03,131.74,131.7,17.53932562]
[1744701462498,0.03,131.74,131.72,9.94632562]
[1744701464203,0.03,131.74,131.72,17.53792562]
[1744701464513,0.03,131.74,131.73,9.94632562]
[1744701467301,0.03,131.74,131.72,19.05902562]
[1744701467905,0.03,131.74,131.72,11.46742562]
[1744701468401,0.03,131.74,131.72,19.05902562]
[1744701468604,0.03,131.74,131.73,9.94632562]
[1744701468780,0.03,131.74,131.72,19.05902562]
[1744701469298,0.03,131.74,131.73,9.94632562]
[1744701476619,0.03,131.74,131.73,17.67968719]
[1744701476831,0.03,131.74,131.73,129.55988481]
[1744701477114,0.03,131.74,131.73,131.12468481]
[1744701480192,0.03,131.74,131.73,131.26684638]
[1744701480593,0.03,131.74,131.73,131.12468481]
[1744701480800,0.03,131.74,131.73,102.24438719]
[1744701481108,0.03,131.74,131.73,9.94632562]
[1744701481298,0.03,131.74,131.73,35.94632562]
[1744701481494,0.03,131.74,131.73,36.08848719]
[1744701481709,0.03,131.74,131.73,35.94632562]
[1744701482331,0.03,131.74,131.73,43.53752562]
[1744701483214,0.03,131.74,131.73,43.67968719]
[1744701483599,0.03,131.74,131.73,155.55988481]
[1744701483792,0.03,131.76,131.74,19.07613357]
[1744701484013,0.03,131.76,131.75,9.94632562]
[1744701484198,0.03,131.76,131.75,92.94622562]
[1744701484398,0.03,131.76,131.75,100.53632562]
[1744701485021,0.03,131.76,131.75,100.67848719]
[1744701487031,0.03,131.76,131.75,92.94622562]
[1744701487520,0.03,131.76,131.75,82.9999]
[1744701488718,0.03,131.76,131.71,17.9121]
[1744701488924,0.03,131.76,131.74,9.94632562]
[1744701489722,0.03,131.76,131.71,10.32]
[1744701490023,9.94632562,131.72,131.68,82.9999]
[1744701490211,9.94632562,131.72,131.67,9.94632562]
[1744701490615,9.94632562,131.71,131.67,9.94632562]
[1744701490796,17.53902562,131.71,131.67,9.94632562]
[1744701491007,7.5927,131.71,131.67,9.94632562]
[1744701492039,9.94632562,131.7,131.65,10.26]
[1744701492201,36.52002562,131.71,131.67,9.94632562]
[1744701492811,7.5927,131.71,131.68,9.94632562]
[1744701493119,1.43306157,131.74,131.7,9.94632562]
[1744701493120,7.5911,131.74,131.7,9.94632562]
[1744701493422,7.6198,131.76,131.73,9.94632562]
[1744701494022,7.6198,131.76,131.72,9.94632562]
[1744701494210,17.56612562,131.76,131.71,9.94632562]
[1744701494520,0.03,131.76,131.74,9.94632562]
[1744701494696,0.03,131.76,131.75,9.94632562]
[1744701494901,0.03,131.76,131.74,9.94632562]
[1744701495401,0.03,131.76,131.75,9.94632562]
[1744701496511,0.03,131.76,131.74,9.94632562]
[1744701496717,0.03,131.76,131.73,9.94632562]
[1744701497220,0.03,131.76,131.74,9.94632562]
[1744701497427,0.03,131.76,131.75,9.94632562]
[1744701499042,0.03,131.76,131.75,10.08848719]
[1744701499331,0.03,131.76,131.75,17.67858719]
[1744701501125,0.03,131.76,131.75,100.67848719]
[1744701502028,0.03,131.76,131.75,93.08838719]
[1744701502412,0.03,131.76,131.75,100.67848719]
[1744701503618,0.03,131.76,131.75,92.94622562]
[1744701503922,0.03,131.76,131.75,9.94632562]
[1744701504310,0.03,131.76,131.75,35.94632562]
[1744701507554,0.03,131.76,131.75,43.67858719]
[1744701509119,0.03,131.76,131.75,35.94632562]
[1744701510841,0.03,131.76,131.75,43.53642562]
[1744701511246,0.03,131.76,131.75,26.0]
[1744701511456,0.03,131.76,131.75,43.67858719]
[1744701515353,0.03,131.76,131.75,36.08848719]
[1744701515565,0.03,131.76,131.75,35.94632562]
[1744701517253,0.03,131.76,131.75,43.53642562]
[1744701517633,0.03,131.76,131.75,43.67858719]
[1744701518051,0.03,131.76,131.75,26.0]
[1744701518361,0.03,131.76,131.75,35.94632562]
[1744701518556,0.03,131.76,131.75,43.53642562]
[1744701519265,0.03,131.76,131.75,35.94632562]
[1744701521954,0.03,131.76,131.75,43.67858719]
[1744701523459,0.03,131.76,131.75,35.94632562]
[1744701524260,0.03,131.76,131.75,26.0]
[1744701524441,0.03,131.76,131.75,43.53642562]
[1744701525636,0.03,131.76,131.75,43.67858719]
[1744701526667,0.03,131.76,131.75,35.94632562]
[1744701527363,0.03,131.76,131.75,43.53642562]
[1744701527576,0.03,131.76,131.69,9.94632562]
[1744701527875,9.97632562,131.76,131.7,9.94632562]
[1744701528559,7.5901,131.75,131.71,9.94632562]
[1744701529246,7.5901,131.75,131.72,9.94632562]
[1744701529563,7.6195,131.76,131.72,9.94632562]
[1744701529741,0.03,131.76,131.74,9.94632562]
[1744701529940,0.03,131.76,131.73,9.94632562]
[1744701531656,0.03,131.76,131.7,7.5927]
[1744701531866,0.03,131.76,131.72,9.94632562]
[1744701532372,9.97632562,131.76,131.71,9.94632562]
[1744701533676,7.5901,131.75,131.71,9.94632562]
[1744701533978,7.5901,131.75,131.72,9.94632562]
[1744701534143,7.6198,131.76,131.72,9.94632562]
[1744701534475,7.6198,131.76,131.73,9.94632562]
[1744701534848,0.03,131.76,131.73,9.94632562]
[1744701535051,0.03,131.76,131.74,9.94632562]
[1744701536845,0.03,131.76,131.75,9.94632562]
[1744701538865,0.03,131.76,131.73,7.591]
[1744701538866,0.03,131.76,131.74,9.94632562]
[1744701541065,0.03,131.76,131.75,9.94632562]
[1744701544171,0.03,131.76,131.75,17.67858719]
[1744701545547,0.03,131.76,131.75,46.87255919]
[1744701545747,29.937,131.78,131.75,46.87255919]
[1744701545748,29.937,131.78,131.77,26.0]
[1744701545962,29.937,131.78,131.77,35.94632562]
[1744701547662,29.937,131.78,131.77,145.61125919]
[1744701547878,0.03,131.8,131.77,126.67728719]
[1744701548171,0.03,131.8,131.79,10.08848719]
[1744701549657,0.03,131.8,131.79,17.67628719]
[1744701551376,0.03,131.8,131.76,19.07613357]
[1744701551377,0.03,131.8,131.76,86.7615592]
[1744701551667,0.03,131.8,131.77,9.94632562]
[1744701552069,0.03,131.8,131.78,9.94632562]
[1744701552252,0.03,131.8,131.79,9.94632562]
[1744701554059,0.03,131.8,131.76,90.5892]
[1744701554260,0.03,131.8,131.77,9.94632562]
[1744701554559,0.03,131.8,131.76,9.94632562]
[1744701554749,9.97632562,131.8,131.75,9.94632562]
[1744701554948,0.03,131.8,131.76,9.94632562]
[1744701555675,7.6172,131.8,131.76,9.94632562]
[1744701555864,0.03,131.8,131.77,9.94632562]
[1744701556071,0.03,131.8,131.78,9.94632562]
[1744701556450,0.03,131.8,131.77,9.94632562]
[1744701559553,0.03,131.8,131.76,9.94632562]
[1744701561488,0.03,131.8,131.77,9.94632562]
[1744701561665,0.03,131.8,131.78,9.94632562]
[1744701561865,0.03,131.8,131.76,9.94632562]
[1744701562252,0.03,131.8,131.77,9.94632562]
[1744701563590,0.03,131.8,131.76,9.94632562]
[1744701563793,9.94632562,131.79,131.76,26.0]
[1744701563964,9.94632562,131.79,131.73,93.40206157]
[1744701563965,9.94632562,131.77,131.73,93.2599]
[1744701564272,9.94632562,131.74,131.69,10.40216157]
[1744701564472,9.94632562,131.74,131.69,20.34848719]
[1744701565066,9.94632562,131.74,131.69,20.20632562]
[1744701565568,7.5912,131.73,131.7,9.94632562]
[1744701567455,7.5912,131.73,131.69,20.20632562]
[1744701568587,7.5912,131.73,131.7,9.94632562]
[1744701568883,17.53672562,131.75,131.71,9.94632562]
[1744701569060,7.5884,131.78,131.73,9.94632562]
[1744701569264,17.53472562,131.78,131.73,9.94632562]
[1744701569673,17.53472562,131.78,131.74,9.94632562]
[1744701570183,7.5884,131.78,131.74,9.94632562]
[1744701570878,8.9082,131.8,131.76,9.94632562]
[1744701571478,8.9082,131.8,131.77,9.94632562]
[1744701571666,8.9082,131.8,131.76,9.94632562]
[1744701572167,9.94632562,131.79,131.75,9.94632562]
[1744701572367,9.94632562,131.79,131.74,9.94632562]
[1744701573586,10.08848719,131.78,131.73,9.94632562]
[1744701573885,7.5895,131.76,131.72,9.94632562]
[1744701574087,17.53582562,131.76,131.72,9.94632562]
[1744701574588,7.5895,131.76,131.72,9.94632562]
[1744701574780,7.5895,131.76,131.73,9.94632562]
[1744701575462,7.5895,131.76,131.72,9.94632562]
[1744701577390,7.5895,131.76,131.73,9.94632562]
[1744701577969,7.5891,131.77,131.74,9.94632562]
[1744701578374,7.5891,131.77,131.71,0.14216157]
[1744701578575,7.5891,131.77,131.73,9.94632562]
[1744701579468,7.5885,131.78,131.75,9.94632562]
[1744701579668,11.26722562,131.8,131.76,9.94632562]
[1744701579669,1.3209,131.8,131.76,9.94632562]
[1744701580093,11.26722562,131.8,131.76,9.94632562]
[1744701580294,11.26722562,131.8,131.75,35.94632562]
[1744701580466,7.5879,131.79,131.75,35.94632562]
[1744701580873,17.53422562,131.79,131.75,26.0]
[1744701581288,17.53422562,131.79,131.74,35.94632562]
[1744701582299,17.53422562,131.79,131.75,9.94632562]
[1744701582300,7.5879,131.79,131.75,9.94632562]
[1744701582882,7.5879,131.79,131.76,9.94632562]
[1744701585501,7.5879,131.79,131.75,9.94632562]
[1744701586403,9.94632562,131.77,131.72,9.94632562]
[1744701586584,9.94632562,131.76,131.72,9.94632562]
[1744701586785,26.5574,131.79,131.72,9.94632562]
[1744701586786,9.94632562,131.77,131.72,9.94632562]
[1744701587086,9.94632562,131.78,131.73,9.94632562]
[1744701587487,7.5889,131.77,131.73,9.94632562]
[1744701588496,7.5889,131.77,131.74,9.94632562]
[1744701590902,7.5889,131.77,131.73,9.94632562]
[1744701591699,9.94632562,131.77,131.73,9.94632562]
[1744701592504,9.94632562,131.78,131.73,9.94632562]
[1744701592911,7.5878,131.79,131.75,9.94632562]
[1744701593986,7.5878,131.79,131.76,9.94632562]
[1744701594302,7.5878,131.79,131.75,9.94632562]
[1744701594986,7.5878,131.79,131.77,9.94632562]
[1744701597107,0.03,131.8,131.77,9.94632562]
[1744701597306,0.03,131.8,131.78,9.94632562]
[1744701598308,0.03,131.8,131.79,9.94632562]
[1744701598704,0.03,131.8,131.78,9.94632562]
[1744701600991,9.97632562,131.8,131.75,92.94622562]
[1744701601192,9.97632562,131.8,131.75,9.94632562]
[1744701601193,0.03,131.8,131.75,9.94632562]
[1744701601398,9.94632562,131.79,131.75,9.94632562]
[1744701602416,7.5884,131.78,131.75,9.94632562]
[1744701602803,7.588,131.79,131.75,9.94632562]
[1744701603009,7.588,131.79,131.76,9.94632562]
[1744701603204,7.588,131.79,131.76,6.35561026]
[1744701603418,0.03,131.8,131.78,6.35561026]
[1744701603713,0.03,131.8,131.79,6.35561026]
[1744701604033,0.03,131.8,131.79,89.49767183]
[1744701604497,0.03,131.8,131.79,97.08547183]
[1744701605201,0.03,131.8,131.79,100.65213192]
[1744701606605,0.03,131.8,131.79,119.58610392]
[1744701609255,0.03,131.8,131.79,119.72826549]
[1744701609534,0.03,131.82,131.81,35.92227035]
[1744701610429,0.03,131.82,131.81,43.50887035]
[1744701612406,0.03,131.82,131.81,26.14216157]
[1744701612608,0.03,131.82,131.81,36.06443192]
[1744701614144,0.03,131.82,131.81,43.65103192]
[1744701615021,0.03,131.82,131.81,36.06443192]
[1744701616911,0.03,131.82,131.81,43.65103192]
[1744701617926,0.03,131.82,131.81,145.58490392]
[1744701619113,0.03,131.86,131.81,163.92513584]
[1744701619333,0.03,131.86,131.85,10.06443192]
[1744701621815,0.03,131.86,131.85,9.92227035]
[1744701622016,0.03,131.86,131.83,20.18227035]
[1744701622336,0.03,131.86,131.84,9.92227035]
[1744701624540,0.03,131.86,131.83,10.26]
[1744701624730,9.95227035,131.86,131.81,10.06443192]
[1744701624940,0.03,131.86,131.84,9.92227035]
[1744701626541,0.03,131.86,131.85,9.92227035]
[1744701627123,0.03,131.86,131.84,6.34741566]
[1744701627540,0.03,131.86,131.85,6.34741566]
[1744701627742,0.03,131.86,131.83,6.34741566]
[1744701628129,0.03,131.86,131.82,6.34741566]
[1744701630248,0.03,131.86,131.81,89.34731566]
[1744701630249,6.37741566,131.86,131.81,89.34731566]
[1744701630547,7.5843,131.85,131.81,6.34741566]
[1744701631837,7.5843,131.85,131.82,6.34741566]
[1744701633060,0.03,131.86,131.83,6.34741566]
[1744701633350,0.03,131.86,131.84,6.34741566]
[1744701633536,0.03,131.86,131.83,6.34741566]
[1744701634441,0.03,131.86,131.84,6.34741566]
[1744701641669,6.37741566,131.86,131.81,6.34741566]
[1744701641960,6.37741566,131.86,131.8,10.26]
[1744701641961,6.34741566,131.85,131.8,16.60741566]
[1744701642160,6.34741566,131.83,131.79,6.34741566]
[1744701642458,6.34741566,131.83,131.77,83.14206157]
[1744701642459,6.34741566,131.84,131.8,6.34741566]
[1744701642671,7.5849,131.84,131.79,7.5877]
[1744701642844,7.5849,131.84,131.8,6.34741566]
[1744701643046,7.5849,131.84,131.81,6.34741566]
[1744701643454,7.5844,131.85,131.82,6.34741566]
[1744701645856,7.66831566,131.86,131.84,6.34741566]
[1744701645857,0.03,131.86,131.84,6.34741566]
[1744701646259,7.6139,131.86,131.83,6.34741566]
[1744701648564,6.34741566,131.85,131.81,82.9999]
[1744701648765,6.34741566,131.83,131.77,0.14216157]
[1744701648969,6.34741566,131.83,131.78,6.34741566]
[1744701649155,7.63831566,131.85,131.8,6.34741566]
[1744701650070,24.3353,131.86,131.81,6.34741566]
[1744701650259,24.20131566,131.86,131.81,6.34741566]
[1744701651163,17.8539,131.86,131.81,6.34741566]
[1744701651372,17.8539,131.86,131.82,6.34741566]
[1744701652574,24.20131566,131.86,131.81,26.0]
[1744701652890,24.20131566,131.86,131.81,32.34741566]
[1744701653679,24.20131566,131.86,131.82,6.34741566]
[1744701654390,7.6139,131.86,131.82,6.34741566]
[1744701658782,7.6139,131.86,131.83,6.34741566]
[1744701658975,0.03,131.86,131.84,6.34741566]
[1744701660999,0.03,131.86,131.83,6.34741566]
[1744701663492,0.03,131.86,131.82,6.48957723]
[1744701664084,0.03,131.86,131.82,6.34741566]
[1744701664284,0.03,131.86,131.81,115.48947723]
[1744701664285,6.37741566,131.86,131.81,115.48947723]
[1744701664489,6.37741566,131.86,131.81,115.34731566]
[1744701664669,6.34741566,131.84,131.81,82.9999]
[1744701664869,13.93291566,131.83,131.78,6.48957723]
[1744701665070,7.5855,131.83,131.79,6.34741566]
[1744701666591,7.5849,131.84,131.8,6.34741566]
[1744701668081,13.93231566,131.84,131.79,6.34741566]
[1744701669983,7.5849,131.84,131.8,6.34741566]
[1744701672106,13.93231566,131.84,131.79,6.34741566]
[1744701677400,32.89461566,131.84,131.79,6.34741566]
[1744701681107,6.34741566,131.83,131.79,6.34741566]
[1744701681810,7.5861,131.82,131.79,6.34741566]
[1744701683904,7.5857,131.83,131.79,6.34741566]
[1744701685008,7.5857,131.83,131.8,6.34741566]
[1744701685507,7.5857,131.83,131.79,6.34741566]
[1744701687213,13.93311566,131.83,131.79,6.34741566]
[1744701688716,7.5857,131.83,131.79,6.34741566]
[1744701690015,7.5857,131.83,131.8,6.34741566]
[1744701690195,6.34741566,131.84,131.8,6.34741566]
[1744701690395,0.03,131.86,131.83,6.34741566]
[1744701691223,0.03,131.86,131.82,6.48957723]
[1744701691398,6.37741566,131.86,131.81,89.34731566]
[1744701692422,7.5843,131.85,131.81,89.34731566]
[1744701692719,7.5843,131.85,131.82,6.34741566]
[1744701693628,7.6139,131.86,131.82,6.34741566]
[1744701696230,7.6139,131.86,131.83,6.34741566]
[1744701696411,7.6139,131.86,131.82,6.34741566]
[1744701697032,13.96131566,131.86,131.82,6.34741566]
[1744701700031,13.96131566,131.86,131.81,89.34731566]
[1744701700427,13.96131566,131.86,131.82,6.34741566]
[1744701701027,7.6139,131.86,131.82,6.34741566]
[1744701702730,13.96131566,131.86,131.82,6.34741566]
[1744701703117,7.6139,131.86,131.82,6.34741566]
[1744701705233,7.6139,131.86,131.83,6.34741566]
[1744701705828,0.03,131.86,131.84,6.34741566]
[1744701706637,0.03,131.86,131.83,6.34741566]
[1744701713719,6.34741566,131.85,131.81,93.2199]
[1744701713918,6.34741566,131.85,131.81,99.56731566]
[1744701714119,6.34741566,131.84,131.79,92.29256157]
[1744701714426,0.03,131.86,131.8,6.34741566]
[1744701714427,6.34741566,131.85,131.8,6.34741566]
[1744701714627,7.5849,131.84,131.8,6.34741566]
[1744701715640,13.93231566,131.84,131.79,84.70516157]
[1744701715841,13.93231566,131.84,131.79,91.05257723]
[1744701716139,13.93231566,131.84,131.8,6.34741566]
[1744701716333,7.5849,131.84,131.81,6.34741566]
[1744701716829,7.5849,131.84,131.8,6.34741566]
[1744701724046,6.34741566,131.84,131.8,6.34741566]
[1744701724651,25.30861566,131.85,131.8,6.34741566]
[1744701724945,6.34741566,131.84,131.8,6.34741566]
[1744701725247,6.34741566,131.84,131.79,89.34731566]
[1744701726449,7.5855,131.83,131.79,6.34741566]
[1744701731455,6.34741566,131.83,131.78,6.34741566]
[1744701731637,6.34741566,131.83,131.79,6.34741566]
[1744701732147,6.34741566,131.84,131.8,6.34741566]
[1744701732545,7.5843,131.85,131.81,6.34741566]
[1744701733929,7.5843,131.85,131.82,6.34741566]
[1744701734134,0.03,131.86,131.84,6.34741566]
[1744701734454,0.03,131.86,131.85,6.48957723]
[1744701734650,0.03,131.86,131.85,89.77380037]
[1744701735467,0.03,131.86,131.85,89.48947723]
[1744701736642,0.03,131.86,131.85,97.07377723]
[1744701736953,0.03,131.86,131.85,97.35810037]
[1744701737432,0.03,131.86,131.85,89.48947723]
[1744701737933,0.03,131.86,131.85,89.34731566]
[1744701738742,0.03,131.86,131.85,26.0]
[1744701738946,0.03,131.86,131.85,32.34741566]
[1744701739756,0.03,131.86,131.85,32.48957723]
[1744701741229,0.03,131.86,131.85,32.34741566]
[1744701741848,0.03,131.86,131.85,26.0]
[1744701743136,0.03,131.86,131.85,32.34741566]
[1744701743659,0.03,131.86,131.85,6.34741566]
[1744701744397,0.03,131.86,131.82,89.34731566]
[1744701744542,0.03,131.86,131.81,1.76006157]
[1744701744750,6.37741566,131.86,131.81,6.48957723]
[1744701744948,6.37741566,131.86,131.81,6.34741566]
[1744701746960,7.5843,131.85,131.81,6.34741566]
[1744701747138,7.5843,131.85,131.82,6.34741566]
[1744701747949,7.614,131.86,131.83,6.34741566]
[1744701748342,0.03,131.86,131.85,6.48957723]
[1744701748536,0.03,131.86,131.85,6.77390037]
[1744701748761,0.03,131.86,131.85,14.35820037]
[1744701748954,0.03,131.86,131.85,97.35810037]
[1744701752557,0.03,131.86,131.85,82.9999]
[1744701753763,0.03,131.86,131.82,6.34741566]
[1744701753963,6.37741566,131.86,131.82,6.34741566]
[1744701754346,0.03,131.86,131.82,6.34741566]
[1744701754754,0.03,131.86,131.83,6.34741566]
[1744701757273,0.03,131.86,131.84,6.34741566]
[1744701757964,0.03,131.86,131.85,32.48957723]
[1744701759066,0.03,131.86,131.85,32.34741566]
[1744701759451,0.03,131.86,131.82,6.34741566]
[1744701759850,6.37741566,131.86,131.82,6.34741566]
[1744701760565,6.37741566,131.86,131.8,11.8843]
[1744701760770,6.34741566,131.84,131.8,16.56741566]
[1744701760972,7.5855,131.83,131.8,16.56741566]
[1744701763392,0.03,131.86,131.8,16.56741566]
[1744701763589,0.03,131.86,131.82,6.34741566]
[1744701764376,13.96131566,131.86,131.82,6.34741566]
[1744701764768,13.96131566,131.86,131.8,17.8072]
[1744701765155,13.96131566,131.86,131.82,6.34741566]
[1744701768091,0.03,131.86,131.82,13.93331566]
[1744701768256,7.6138,131.86,131.82,13.93331566]
[1744701768462,7.6138,131.86,131.82,6.34741566]
[1744701770191,13.96121566,131.86,131.81,13.93381566]
[1744701770772,6.34741566,131.84,131.8,93.2199]
[1744701771075,6.34741566,131.85,131.8,99.56731566]
[1744701771285,6.34741566,131.85,131.8,107.15431566]
[1744701771987,7.6138,131.86,131.82,6.34741566]
[1744701772683,13.96121566,131.86,131.81,13.93381566]
[1744701774682,7.6138,131.86,131.82,13.93341566]
[1744701775072,7.6138,131.86,131.84,6.34741566]
[1744701775073,0.03,131.86,131.84,6.34741566]
[1744701776765,0.03,131.86,131.84,13.93221566]
[1744701777293,0.03,131.86,131.85,6.48957723]
[1744701778388,0.03,131.86,131.85,14.07387723]
[1744701779303,0.03,131.86,131.85,33.00784923]
[1744701779601,0.03,131.86,131.85,43.22784923]
[1744701780495,0.03,131.86,131.85,43.3700108]
[1744701780796,0.03,131.86,131.85,126.3699108]
[1744701781681,0.03,131.86,131.85,127.9340108]
[1744701782088,0.03,131.86,131.85,127.79184923]
[1744701782975,0.03,131.86,131.85,127.9340108]
[1744701784491,0.03,131.86,131.85,121.58659514]
[1744701784705,0.03,131.86,131.85,127.9340108]
[1744701784911,0.03,131.86,131.85,127.79184923]
[1744701788598,0.1556575,131.87,131.86,18.79181043]
[1744701788774,0.1556575,131.87,131.86,25.13922609]
[1744701789404,0.1556575,131.87,131.86,32.72302609]
[1744701790789,0.1556575,131.87,131.86,33.1495108]
[1744701791694,0.1556575,131.87,131.86,116.1494108]
[1744701793192,0.1556575,131.87,131.86,115.86508766]
[1744701793583,0.1556575,131.87,131.86,116.00724923]
[1744701793779,0.1556575,131.87,131.86,116.1494108]
[1744701798975,0.1556575,131.87,131.86,122.1872108]
[1744701799179,0.03,131.88,131.87,0.28432314]
[1744701799381,0.03,131.88,131.87,108.42344923]
[1744701801005,0.03,131.88,131.87,116.00664923]
[1744701805502,0.03,131.88,131.87,116.1488108]
[1744701805817,0.03,131.88,131.87,90.72526157]
[1744701806003,0.03,131.88,131.87,91.00958471]
[1744701806196,0.03,131.88,131.87,97.35700037]
[1744701806599,0.03,131.88,131.83,24.13291566]
[1744701806795,6.34741566,131.86,131.83,10.2]
[1744701807621,13.93131566,131.86,131.83,10.2]
[1744701807903,12.70961566,131.84,131.77,7.5888]
[1744701808107,6.34741566,131.81,131.77,7.5888]
[1744701808312,6.34741566,131.82,131.78,0.14216157]
[1744701808484,6.34741566,131.81,131.76,96.99961566]
[1744701808685,1.2909,131.83,131.76,0.063]
[1744701808920,6.34741566,131.79,131.76,0.063]
[1744701809091,6.34741566,131.78,131.76,0.063]
[1744701809607,13.93531566,131.79,131.76,0.063]
[1744701809794,6.34741566,131.78,131.76,0.063]
[1744701810001,7.5879,131.79,131.76,0.063]
[1744701810398,7.5861,131.82,131.76,0.20516157]
[1744701810591,6.34741566,131.8,131.76,0.20516157]
[1744701810792,7.5861,131.82,131.76,6.55257723]
[1744701810991,13.93351566,131.82,131.77,6.34741566]